bitfinex/quotes_SOLUSD_20240621
["timestamp","ask_amount","ask_price","bid_price","bid_amount"]
[1718961853624,15.1622,131.56,131.51,9.74]
[1718961853828,15.1622,131.56,131.53,9.74]
[1718961854138,15.1622,131.56,131.52,9.74]
[1718961854338,16.0191535,131.59,131.55,9.74]
[1718961854535,16.0191535,131.59,131.53,104.74]
[1718961854536,16.0191535,131.59,131.58,9.74]
[1718961857546,16.0191535,131.59,131.55,29.17]
[1718961857737,16.0191535,131.59,131.56,20.0]
[1718961858443,0.8569535,131.59,131.56,20.0]
[1718961861255,6.0804,131.57,131.56,20.0]
[1718961861434,0.8569535,131.59,131.56,20.0]
[1718961861635,6.0802,131.58,131.56,20.0]
[1718961861835,6.9365535,131.59,131.56,20.0]
[1718961862549,6.9365535,131.59,131.56,65.78]
[1718961862855,6.0799,131.58,131.56,65.78]
[1718961863239,6.9365535,131.59,131.56,65.78]
[1718961863971,0.8569535,131.59,131.56,65.78]
[1718961864459,0.8569535,131.59,131.58,29.17]
[1718961864757,0.8569535,131.59,131.58,49.34]
[1718961864938,0.8569535,131.59,131.58,96.4797106]
[1718961865554,0.8569535,131.59,131.58,95.29]
[1718961868940,0.8569535,131.59,131.58,101.3699]
[1718961869269,15.3308,131.67,131.61,45.78]
[1718961869557,15.3308,131.67,131.62,20.0]
[1718961870178,15.3308,131.67,131.62,65.78]
[1718961871275,15.892,131.71,131.64,29.17]
[1718961871459,15.892,131.71,131.65,20.17]
[1718961872072,15.892,131.71,131.65,20.0]
[1718961874562,15.892,131.71,131.63,94.95]
[1718961875767,15.892,131.71,131.63,49.17]
[1718961876077,15.892,131.71,131.63,20.0]
[1718961876453,15.892,131.71,131.61,20.0]
[1718961876862,15.892,131.71,131.61,65.78]
[1718961877474,15.892,131.71,131.62,0.34]
[1718961878076,15.892,131.71,131.61,65.78]
[1718961878865,15.892,131.71,131.61,20.0]
[1718961879282,15.892,131.71,131.66,29.17]
[1718961879492,15.892,131.71,131.67,20.0]
[1718961879653,15.892,131.71,131.63,45.78]
[1718961879858,15.892,131.71,131.66,9.71]
[1718961880382,15.892,131.71,131.67,9.71]
[1718961880959,15.892,131.71,131.61,45.78]
[1718961881158,9.71,131.7,131.65,9.71]
[1718961881359,15.892,131.71,131.62,20.0]
[1718961881575,9.71,131.7,131.65,9.71]
[1718961881772,16.4071,131.7,131.57,32.1946]
[1718961881963,26.1171,131.67,131.62,9.71]
[1718961882285,26.1171,131.67,131.61,9.71]
[1718961882782,26.1171,131.67,131.56,6.0884]
[1718961882783,26.1171,131.67,131.57,45.78]
[1718961882994,16.4071,131.67,131.58,20.0]
[1718961883154,16.0994,131.65,131.56,6.0884]
[1718961883362,6.3894,131.65,131.54,16.3026]
[1718961883559,9.71,131.64,131.59,9.71]
[1718961884677,16.0994,131.65,131.6,9.71]
[1718961884989,6.3894,131.65,131.62,9.71]
[1718961885477,6.3894,131.65,131.56,45.78]
[1718961885478,6.3894,131.65,131.56,74.94]
[1718961885679,6.3894,131.65,131.57,20.0]
[1718961888698,6.3894,131.65,131.58,0.34]
[1718961888872,6.3894,131.65,131.57,65.78]
[1718961889188,6.3894,131.65,131.57,20.0]
[1718961889587,16.5589,131.64,131.57,20.0]
[1718961889976,16.5589,131.64,131.55,20.0]
[1718961890577,16.5589,131.64,131.54,20.0]
[1718961890776,16.1102,131.62,131.54,20.0]
[1718961891090,16.1102,131.62,131.51,45.78]
[1718961891303,6.2597,131.61,131.5,6.132]
[1718961892277,6.2597,131.61,131.5,51.912]
[1718961892675,6.2597,131.61,131.5,57.9954]
[1718961892877,6.2597,131.61,131.51,0.34]
[1718961893192,6.2597,131.61,131.52,29.16]
[1718961893398,6.2597,131.61,131.53,20.0]
[1718961893985,6.2597,131.61,131.53,71.862]
[1718961894197,6.2597,131.61,131.53,65.78]
[1718961900001,6.2597,131.61,131.53,20.0]
[1718961900385,6.2597,131.61,131.52,29.16]
[1718961900690,15.6781,131.6,131.53,20.0]
[1718961903712,15.6781,131.6,131.5,29.16]
[1718961903919,15.6781,131.6,131.51,20.0]
[1718961904885,15.6781,131.58,131.48,74.94]
[1718961906208,15.6781,131.58,131.51,29.16]
[1718961906410,15.6781,131.58,131.52,20.0]
[1718961909609,22.0651,131.61,131.54,74.94]
[1718961909804,22.0651,131.61,131.55,20.0]
[1718961909986,15.8054,131.65,131.58,45.78]
[1718961910188,15.8054,131.65,131.59,20.0]
[1718961910625,15.8054,131.65,131.6,75.28]
[1718961910807,15.8054,131.65,131.61,20.0]
[1718961911514,15.3054,131.65,131.61,20.0]
[1718961912215,15.3054,131.65,131.57,45.78]
[1718961912216,15.3054,131.65,131.58,94.94]
[1718961912405,15.3054,131.65,131.59,20.0]
[1718961913493,15.3054,131.65,131.58,20.0]
[1718961913903,15.3054,131.65,131.58,65.78]
[1718961914394,15.3054,131.65,131.59,46.12]
[1718961914599,15.3054,131.65,131.6,20.0]
[1718961914806,15.3054,131.65,131.58,49.16]
[1718961915216,6.5504,131.64,131.58,20.0]
[1718961915400,6.5504,131.64,131.55,20.0]
[1718961916117,15.4226,131.63,131.55,20.0]
[1718961916308,6.5504,131.64,131.5,29.16]
[1718961916309,16.2141,131.61,131.5,29.16]
[1718961916504,16.2141,131.61,131.52,20.0]
[1718961916705,6.1182,131.59,131.5,29.16]
[1718961916910,16.2141,131.58,131.47,29.16]
[1718961917110,16.2141,131.58,131.48,20.0]
[1718961917305,16.2141,131.58,131.47,29.16]
[1718961917616,15.83447,131.58,131.47,29.16]
[1718961917800,45.0,131.57,131.47,29.16]
[1718961919214,45.0,131.57,131.45,45.78]
[1718961919412,45.0,131.57,131.45,29.16]
[1718961919629,6.5504,131.56,131.45,29.16]
[1718961919799,45.0,131.55,131.45,29.16]
[1718961920623,16.0626,131.54,131.45,29.16]
[1718961921518,16.0626,131.54,131.46,20.0]
[1718961922530,45.0,131.53,131.46,20.0]
[1718961922831,16.0626,131.54,131.46,20.0]
[1718961923237,45.0,131.53,131.46,20.0]
[1718961923410,44.5,131.53,131.46,20.0]
[1718961923818,16.0626,131.54,131.46,20.0]
[1718961926541,45.0,131.53,131.46,20.0]
[1718961926837,45.0,131.53,131.45,29.16]
[1718961927817,16.0626,131.54,131.45,29.16]
[1718961928334,45.0,131.53,131.45,29.16]
[1718961931418,16.0626,131.54,131.45,29.16]
[1718961931623,16.0626,131.54,131.46,20.0]
[1718961935628,16.0626,131.54,131.44,20.0]
[1718961938447,16.0626,131.54,131.45,45.78]
[1718961938644,16.0626,131.54,131.46,49.33]
[1718961939343,16.0626,131.54,131.46,65.6416]
[1718961939754,16.0626,131.54,131.47,6.0825]
[1718961939931,16.0626,131.54,131.48,20.0]
[1718961940650,263.05614557,131.59,131.48,20.0]
[1718961940651,16.1626,131.57,131.48,20.0]
[1718961943026,45.0,131.56,131.48,20.0]
[1718961943849,7.95614557,131.59,131.48,65.76]
[1718961944056,7.95614557,131.59,131.49,29.16]
[1718961944238,16.18,131.62,131.5,20.0]
[1718961944441,20.0,131.61,131.5,20.0]
[1718961945954,45.0,131.6,131.5,20.0]
[1718961947357,15.1498,131.57,131.47,6.0825]
[1718961947648,15.1498,131.57,131.48,20.0]
[1718961947649,45.0,131.56,131.48,20.0]
[1718961948238,45.0,131.56,131.47,6.0825]
[1718961948626,15.1498,131.57,131.47,6.0825]
[1718961948847,45.0,131.56,131.47,6.0825]
[1718961954753,15.1498,131.57,131.47,6.0825]
[1718961954944,45.0,131.56,131.47,6.0825]
[1718961958754,15.1498,131.57,131.47,6.0825]
[1718961960342,45.0,131.56,131.47,6.0825]
[1718961960557,14.31705609,131.58,131.47,81.0025]
[1718961960558,7.95645609,131.58,131.47,81.0025]
[1718961960866,271.2512,131.6,131.5,29.16]
[1718961961069,271.2512,131.6,131.51,35.4575]
[1718961961246,16.1512,131.6,131.52,6.0307]
[1718961961438,16.1512,131.63,131.53,20.0]
[1718961964465,45.0,131.62,131.53,20.0]
[1718961964773,16.1512,131.63,131.53,20.0]
[1718961965483,7.95274141,131.65,131.54,15.4604]
[1718961965646,7.95274141,131.65,131.55,55.5683]
[1718961965980,15.7824,131.67,131.55,101.3283]
[1718961966465,7.949517,131.7,131.58,29.16]
[1718961966673,7.949517,131.7,131.59,20.0]
[1718961967051,7.949517,131.7,131.6,6.4083]
[1718961967250,7.949517,131.7,131.61,20.0]
[1718961968070,15.7824,131.71,131.61,20.0]
[1718961969470,15.7824,131.71,131.61,49.16]
[1718961969672,269.9274798,131.72,131.62,15.4604]
[1718961969673,263.90557719,131.72,131.62,15.4604]
[1718961969862,255.9569535,131.72,131.62,15.4604]
[1718961971261,45.0,131.71,131.62,15.4604]
[1718961972856,45.0,131.71,131.63,20.0]
[1718961973678,255.9569535,131.72,131.63,20.0]
[1718961974854,0.8569535,131.72,131.64,6.1645]
[1718961975167,0.8569535,131.72,131.65,20.0]
[1718961976380,0.8569535,131.72,131.66,15.4839]
[1718961976674,0.8569535,131.72,131.67,20.0]
[1718961976873,0.8569535,131.72,131.64,6.3345]
[1718961976874,0.8569535,131.72,131.64,6.1645]
[1718961977963,0.8569535,131.72,131.65,20.0]
[1718961978981,0.8569535,131.72,131.65,94.92]
[1718961979358,0.8569535,131.72,131.65,65.76]
[1718961979559,0.8569535,131.72,131.65,94.92]
[1718961980486,0.8569535,131.72,131.66,22.2769]
[1718961980674,0.8569535,131.72,131.67,20.0]
[1718961982267,15.618,131.71,131.62,6.0116]
[1718961982581,65.0,131.7,131.62,6.0116]
[1718961982945,165.0,131.7,131.62,6.0116]
[1718961983189,65.0,131.7,131.58,51.7716]
[1718961984757,65.0,131.7,131.58,6.0116]
[1718961985294,165.0,131.7,131.58,6.0116]
[1718961985465,165.0,131.7,131.59,20.0]
[1718961986065,65.0,131.7,131.59,20.0]
[1718961988289,165.0,131.7,131.59,20.0]
[1718961989366,65.0,131.7,131.59,20.0]
[1718961989689,65.0,131.7,131.59,49.16]
[1718961990283,20.0,131.7,131.59,94.92]
[1718961990486,15.618,131.71,131.61,6.0784]
[1718961990688,15.618,131.71,131.62,49.16]
[1718961990899,15.618,131.71,131.62,95.09]
[1718961991193,0.8569535,131.72,131.65,29.16]
[1718961991370,0.8569535,131.72,131.66,20.0]
[1718961991693,0.8569535,131.72,131.66,65.76]
[1718961992794,0.8569535,131.72,131.66,20.0]
[1718961993279,0.8569535,131.72,131.65,20.0]
[1718961994773,0.8569535,131.72,131.64,20.0]
[1718961998705,0.8569535,131.72,131.65,29.16]
[1718961998905,7.3344535,131.72,131.64,20.0]
[1718962000101,7.3344535,131.72,131.6,15.4797]
[1718962000102,15.3598,131.71,131.6,21.8303]
[1718962000413,15.3598,131.71,131.61,20.0]
[1718962000904,15.3598,131.71,131.61,65.76]
[1718962001381,15.3598,131.71,131.62,29.16]
[1718962001583,15.3598,131.71,131.63,20.0]
[1718962002590,15.3598,131.71,131.63,65.76]
[1718962002995,0.8569535,131.72,131.63,71.8375]
[1718962003300,0.8569535,131.72,131.64,0.34]
[1718962003803,0.8569535,131.72,131.63,65.76]
[1718962005121,0.8569535,131.72,131.63,20.0]
[1718962005422,0.8569535,131.72,131.6,52.1106]
[1718962005423,0.8569535,131.72,131.61,20.0]
[1718962006094,6.1779,131.71,131.61,20.0]
[1718962006427,6.1779,131.71,131.61,65.76]
[1718962007631,6.1779,131.71,131.62,0.34]
[1718962009523,6.1779,131.71,131.61,65.76]
[1718962010015,16.0644,131.7,131.61,65.76]
[1718962011115,16.0644,131.7,131.64,6.0767]
[1718962011291,16.0644,131.7,131.62,0.34]
[1718962011292,16.0644,131.7,131.65,20.0]
[1718962011497,16.0644,131.7,131.65,65.76]
[1718962012422,16.0644,131.7,131.65,20.0]
[1718962012598,16.0644,131.7,131.63,20.0]
[1718962012802,6.2003,131.69,131.58,6.4157]
[1718962013020,6.2003,131.69,131.58,12.4955]
[1718962013220,6.2003,131.69,131.59,20.0]
[1718962013423,6.2003,131.69,131.59,65.76]
[1718962014312,6.2003,131.69,131.6,0.17]
[1718962015199,6.2003,131.69,131.59,65.76]
[1718962019506,6.2003,131.69,131.59,71.8394]
[1718962019710,6.2003,131.69,131.6,0.34]
[1718962019926,6.2003,131.69,131.59,65.76]
[1718962020829,15.8646,131.68,131.59,20.0]
[1718962021027,35.8646,131.68,131.57,65.76]
[1718962022327,35.8646,131.68,131.58,0.17]
[1718962022527,35.8646,131.68,131.58,0.34]
[1718962022718,35.8646,131.68,131.59,45.76]
[1718962022916,15.8646,131.68,131.6,20.0]
[1718962024121,15.8646,131.68,131.59,65.76]
[1718962024331,15.8646,131.68,131.6,0.17]
[1718962024629,15.8646,131.68,131.6,0.34]
[1718962025439,15.8646,131.68,131.6,29.14]
[1718962025736,15.8646,131.68,131.61,20.0]
[1718962026133,15.8646,131.68,131.61,65.76]
[1718962027714,15.8646,131.68,131.62,0.34]
[1718962027911,15.8646,131.68,131.63,74.9]
[1718962028117,15.8646,131.68,131.64,20.0]
[1718962028817,23.0807535,131.72,131.64,20.0]
[1718962029419,23.0807535,131.72,131.65,0.34]
[1718962029622,23.0807535,131.72,131.66,74.9]
[1718962029927,23.0807535,131.72,131.67,20.0]
[1718962031336,23.0807535,131.72,131.67,65.76]
[1718962031337,16.8438535,131.72,131.67,65.76]
[1718962031514,0.8569535,131.72,131.67,65.76]
[1718962035233,0.8569535,131.72,131.68,0.34]
[1718962037040,0.8569535,131.72,131.67,65.76]
[1718962038338,0.8569535,131.72,131.67,20.0]
[1718962038514,0.8569535,131.72,131.59,6.2485]
[1718962038515,6.395,131.7,131.59,6.2485]
[1718962038721,6.395,131.7,131.61,29.14]
[1718962040051,15.5394,131.69,131.58,29.14]
[1718962040545,15.5394,131.69,131.58,74.9]
[1718962042042,15.5394,131.69,131.59,20.0]
[1718962042415,15.5394,131.69,131.6,45.76]
[1718962042740,15.5394,131.69,131.61,65.76]
[1718962042922,15.5394,131.69,131.62,20.0]
[1718962043843,15.5394,131.69,131.62,65.76]
[1718962045054,15.5394,131.69,131.62,20.0]
[1718962046031,21.4859,131.67,131.55,6.09720495]
[1718962046338,15.0299,131.66,131.55,29.14]
[1718962047251,6.005,131.65,131.55,29.14]
[1718962047550,16.1893,131.64,131.52,6.2015]
[1718962047854,16.1893,131.64,131.53,29.14]
[1718962048022,16.1893,131.64,131.51,15.2778]
[1718962048221,16.1893,131.64,131.52,74.9]
[1718962048919,16.1893,131.64,131.53,6.0822]
[1718962049119,16.1893,131.64,131.53,45.76]
[1718962049428,16.1893,131.64,131.54,20.0]
[1718962049838,15.9743,131.62,131.54,20.0]
[1718962050142,15.9743,131.62,131.52,20.0]
[1718962050333,20.0,131.61,131.52,20.0]
[1718962053822,15.9743,131.6,131.52,20.0]
[1718962054029,6.2631,131.59,131.51,20.0]
[1718962056453,6.2631,131.59,131.52,45.76]
[1718962056654,6.2631,131.59,131.53,49.14]
[1718962059055,6.2631,131.59,131.53,20.0]
[1718962059235,6.2631,131.59,131.51,20.0]
[1718962060544,6.2631,131.59,131.51,65.76]
[1718962062838,6.2631,131.59,131.53,74.9]
[1718962063036,6.2631,131.59,131.54,20.0]
[1718962063962,6.2631,131.59,131.54,65.76]
[1718962064172,15.9743,131.6,131.54,65.76]
[1718962069878,15.9743,131.6,131.54,20.0]
[1718962077074,15.9743,131.6,131.51,20.0]
[1718962079480,15.9743,131.6,131.51,65.76]
[1718962079775,15.9743,131.6,131.53,35.2222]
[1718962079985,15.9743,131.6,131.54,20.0]
[1718962080483,15.9743,131.6,131.54,71.8416]
[1718962080699,15.9743,131.6,131.54,65.76]
[1718962081258,15.9743,131.6,131.56,29.14]
[1718962081482,15.9743,131.6,131.57,20.0]
[1718962083891,15.9743,131.6,131.55,20.0]
[1718962084250,15.9743,131.6,131.55,65.76]
[1718962085471,15.9743,131.6,131.55,20.0]
[1718962086852,15.9743,131.6,131.55,65.76]
[1718962088459,21.869,131.67,131.57,35.2203]
[1718962088664,21.869,131.67,131.58,20.0]
[1718962095488,21.869,131.67,131.6,29.14]
[1718962095692,21.869,131.67,131.61,20.0]
[1718962100199,15.3186,131.67,131.61,20.0]
[1718962100369,6.4377,131.7,131.64,51.8369]
[1718962100565,6.4377,131.7,131.62,0.34]
[1718962100566,6.4377,131.7,131.66,29.14]
[1718962100781,6.4377,131.7,131.67,20.0]
[1718962101792,16.0698,131.71,131.67,20.0]
[1718962102710,16.0698,131.71,131.67,29.14]
[1718962102882,16.0698,131.71,131.68,20.0]
[1718962104790,0.8569535,131.72,131.68,20.0]
[1718962105693,0.8569535,131.72,131.68,49.14]
[1718962107079,0.8569535,131.72,131.68,94.9]
[1718962108416,0.8569535,131.72,131.68,49.14]
[1718962108584,0.8569535,131.72,131.68,94.9]
[1718962109417,0.8569535,131.72,131.68,49.14]
[1718962110411,0.8569535,131.72,131.68,94.9]
[1718962113014,0.8569535,131.72,131.68,100.9752]
[1718962113193,0.8569535,131.72,131.7,29.14]
[1718962113395,0.8569535,131.72,131.71,20.0]
[1718962114018,0.8569535,131.72,131.69,49.14]
[1718962115505,0.8569535,131.72,131.71,9.7]
[1718962115807,0.8569535,131.72,131.71,29.7]
[1718962116888,0.8569535,131.72,131.71,20.0]
[1718962117087,0.8569535,131.72,131.71,9.7]
[1718962117394,0.8569535,131.72,131.71,29.7]
[1718962118203,16.1353,131.75,131.71,39.4]
[1718962118422,16.1353,131.75,131.74,9.7]
[1718962118714,16.1353,131.75,131.74,29.7]
[1718962119509,16.1353,131.75,131.74,20.0]
[1718962119716,16.1353,131.75,131.72,20.0]
[1718962128022,16.1353,131.75,131.71,20.0]
[1718962128494,16.1353,131.75,131.67,20.0]
[1718962128927,16.1353,131.75,131.69,29.09]
[1718962130115,16.1353,131.75,131.67,74.85]
[1718962130316,16.1353,131.75,131.68,20.0]
[1718962130712,16.1353,131.75,131.68,65.76]
[1718962131327,16.1353,131.75,131.68,71.835]
[1718962131533,16.1353,131.75,131.7,29.09]
[1718962131695,16.1353,131.75,131.71,20.0]
[1718962134724,16.1353,131.75,131.71,20.0]
[1718962136404,16.1353,131.75,131.67,29.09]
[1718962138520,16.1353,131.75,131.68,20.0]
[1718962139523,16.1353,131.75,131.73,9.7]
[1718962139717,16.1353,131.75,131.72,9.7]
[1718962140329,25.8353,131.75,131.7,9.7]
[1718962140522,6.5332,131.74,131.69,9.7]
[1718962141029,15.0541,131.73,131.68,20.0]
[1718962141318,24.7541,131.73,131.68,9.7]
[1718962141732,15.0541,131.73,131.68,9.7]
[1718962142127,15.0541,131.73,131.7,9.7]
[1718962142332,15.0541,131.73,131.72,9.7]
[1718962143308,15.0541,131.73,131.67,38.8]
[1718962143508,15.0541,131.73,131.72,9.7]
[1718962145333,15.0541,131.73,131.67,38.8]
[1718962145632,15.0541,131.73,131.68,49.11]
[1718962151334,15.0541,131.73,131.68,20.0]
[1718962151653,15.0541,131.73,131.66,20.0]
[1718962153030,6.1153,131.72,131.66,20.0]
[1718962154160,15.0541,131.73,131.66,65.76]
[1718962154452,15.0541,131.73,131.68,29.11]
[1718962154625,15.0541,131.73,131.69,20.0]
[1718962159450,15.3547,131.76,131.69,65.76]
[1718962160447,15.3547,131.76,131.7,74.87]
[1718962160641,15.3547,131.76,131.71,65.76]
[1718962160835,6.0875,131.78,131.71,65.76]
[1718962162552,6.0875,131.78,131.71,20.0]
[1718962164263,15.3547,131.79,131.71,20.0]
[1718962165438,15.3547,131.79,131.74,9.7]
[1718962166040,15.3547,131.79,131.75,9.7]
[1718962166237,15.3547,131.79,131.71,20.0]
[1718962166564,15.3547,131.79,131.74,9.7]
[1718962166947,15.3547,131.79,131.75,9.7]
[1718962168158,15.3547,131.79,131.74,9.7]
[1718962168365,15.3547,131.79,131.75,9.7]
[1718962169164,25.0547,131.79,131.74,9.7]
[1718962169345,15.3547,131.79,131.74,9.7]
[1718962169547,25.0547,131.79,131.74,9.7]
[1718962169759,25.0547,131.79,131.69,20.0]
[1718962169760,45.0,131.78,131.69,20.0]
[1718962170058,6.0044,131.77,131.73,9.7]
[1718962170250,15.7044,131.77,131.69,20.0]
[1718962170449,15.7044,131.77,131.72,9.7]
[1718962170835,25.5874,131.76,131.71,9.7]
[1718962171041,15.8874,131.76,131.69,20.0]
[1718962171337,15.8874,131.76,131.7,9.7]
[1718962171540,15.8874,131.76,131.69,9.7]
[1718962172065,15.8874,131.76,131.66,20.0]
[1718962172234,6.4787,131.73,131.67,9.7]
[1718962172562,6.4787,131.73,131.65,29.7]
[1718962172563,9.7,131.71,131.65,29.7]
[1718962172737,25.893,131.72,131.66,9.7]
[1718962173353,25.893,131.72,131.61,6.02155989]
[1718962173354,16.193,131.72,131.61,6.02155989]
[1718962173571,16.193,131.72,131.61,29.14]
[1718962174366,45.0,131.71,131.62,20.0]
[1718962175339,16.193,131.72,131.62,20.0]
[1718962175966,16.2912,131.7,131.62,20.0]
[1718962176177,16.2912,131.7,131.6,20.0]
[1718962176333,45.0,131.69,131.6,20.0]
[1718962177263,6.5504,131.68,131.6,20.0]
[1718962177477,16.2912,131.67,131.6,20.0]
[1718962178375,16.2912,131.67,131.59,29.14]
[1718962178548,16.2912,131.67,131.6,20.0]
[1718962178751,16.2912,131.67,131.62,29.14]
[1718962179373,16.2912,131.67,131.61,29.14]
[1718962179676,16.2912,131.67,131.62,20.0]
[1718962192689,16.2912,131.67,131.64,29.14]
[1718962193499,15.2376,131.71,131.66,9.71]
[1718962193668,15.2376,131.71,131.7,9.71]
[1718962196674,15.2376,131.71,131.62,6.0688]
[1718962196885,15.2376,131.71,131.69,9.71]
[1718962200292,15.2376,131.71,131.62,6.0688]
[1718962200506,15.2376,131.71,131.67,9.71]
[1718962203101,15.2376,131.71,131.61,15.9921]
[1718962203299,15.2376,131.71,131.62,20.0]
[1718962203500,24.9476,131.71,131.62,20.0]
[1718962203805,15.2376,131.71,131.6,38.84]
[1718962204104,15.2376,131.71,131.67,9.71]
[1718962206203,15.2376,131.71,131.69,9.71]
[1718962206408,15.2376,131.71,131.7,9.71]
[1718962207080,15.2376,131.71,131.62,45.76]
[1718962207284,15.2376,131.71,131.68,9.71]
[1718962207488,15.2376,131.71,131.69,9.71]
[1718962208496,15.2376,131.71,131.63,71.8374]
[1718962208692,15.2376,131.71,131.7,9.71]
[1718962209906,15.2376,131.71,131.64,6.3179]
[1718962210105,15.2376,131.71,131.7,9.71]
[1718962211404,15.113,131.76,131.7,9.71]
[1718962211618,15.113,131.76,131.72,9.71]
[1718962212491,15.113,131.76,131.73,9.71]
[1718962213008,15.113,131.76,131.71,9.71]
[1718962213306,15.113,131.76,131.7,9.71]
[1718962213503,15.113,131.76,131.64,6.3179]
[1718962213804,45.0,131.75,131.69,9.71]
[1718962214217,7.94420854,131.79,131.69,68.0047]
[1718962214382,7.94420854,131.79,131.77,9.71]
[1718962214582,15.4141,131.8,131.77,9.71]
[1718962216204,15.4141,131.8,131.79,9.71]
[1718962216502,15.4865,131.85,131.79,9.71]
[1718962216812,15.4865,131.85,131.81,9.71]
[1718962217108,15.4865,131.85,131.83,9.71]
[1718962217493,15.4865,131.85,131.75,6.6208]
[1718962217701,15.4865,131.85,131.76,20.0]
[1718962217890,15.4865,131.85,131.76,65.0]
[1718962218598,15.4865,131.85,131.77,29.07]
[1718962218805,15.4865,131.85,131.78,65.0]
[1718962219620,0.8569535,131.86,131.8,29.07]
[1718962219793,0.8569535,131.86,131.81,20.0]
[1718962222816,0.8569535,131.86,131.8,29.07]
[1718962222991,0.8569535,131.86,131.77,29.07]
[1718962223191,0.8569535,131.86,131.78,20.0]
[1718962223907,45.8569535,131.86,131.78,20.0]
[1718962224108,45.8569535,131.86,131.77,29.07]
[1718962224109,21.9804,131.84,131.77,29.07]
[1718962224319,21.9804,131.84,131.74,29.07]
[1718962224625,21.9804,131.84,131.77,29.07]
[1718962225115,15.9463,131.84,131.77,29.07]
[1718962225414,15.9463,131.84,131.78,20.0]
[1718962227588,0.8569535,131.86,131.8,29.07]
[1718962227795,0.8569535,131.86,131.81,20.0]
[1718962227999,0.8569535,131.86,131.83,29.07]
[1718962228225,0.8569535,131.86,131.84,20.0]
[1718962229421,0.8569535,131.86,131.84,26.3758]
[1718962229593,15.4865,131.94,131.87,45.76]
[1718962229801,15.4865,131.94,131.91,35.4458]
[1718962230005,16.6494535,131.99,131.92,71.0642]
[1718962230006,0.8569535,131.99,131.92,71.0642]
[1718962230328,0.8569535,131.99,131.97,29.07]
[1718962230511,0.8569535,131.99,131.98,20.0]
[1718962232625,0.8569535,131.99,131.98,29.07]
[1718962232929,0.8569535,131.99,131.96,20.0]
[1718962233303,0.8569535,131.99,131.91,6.3758]
[1718962233510,0.8569535,131.99,131.92,49.07]
[1718962233916,0.8569535,131.99,131.95,29.07]
[1718962234231,0.8569535,131.99,131.96,20.0]
[1718962237124,0.8569535,131.99,131.91,6.3758]
[1718962237301,0.8569535,131.99,131.92,29.07]
[1718962238504,0.8569535,131.99,131.93,20.0]
[1718962239131,16.4814,131.97,131.87,36.857504]
[1718962239305,16.4814,131.97,131.88,49.07]
[1718962239509,16.4814,131.97,131.88,29.07]
[1718962241038,16.4814,131.97,131.88,74.66]